bitfinex/quotes_BTCUSD_20250917
["timestamp","ask_amount","ask_price","bid_price","bid_amount"]
[1758077320420,0.73783777,117030.0,117020.0,0.00104011]
[1758077320615,0.43167677,117030.0,117020.0,0.00104011]
[1758077320821,0.73783777,117030.0,117020.0,0.00104011]
[1758077323232,0.65133632,117030.0,117020.0,0.00104011]
[1758077329266,0.62380632,117030.0,117020.0,0.00301011]
[1758077329468,0.62380632,117030.0,117020.0,0.02414011]
[1758077329699,0.65123632,117030.0,117020.0,0.00104011]
[1758077330837,0.33983532,117030.0,117020.0,0.00301011]
[1758077331075,0.28540342,117030.0,117020.0,0.02927011]
[1758077331296,0.11450707,117030.0,117020.0,0.20018106]
[1758077331507,0.01197925,117030.0,117020.0,0.20018106]
[1758077331713,0.00596936,117030.0,117020.0,0.20018106]
[1758077336780,0.00586936,117030.0,117020.0,0.54448424]
[1758077337808,0.00586936,117030.0,117020.0,0.20018106]
[1758077338183,0.00586936,117030.0,117020.0,0.54448424]
[1758077339090,0.00586936,117030.0,117020.0,0.60832571]
[1758077339331,0.00586936,117030.0,117020.0,0.53786253]
[1758077339771,0.00586936,117030.0,117020.0,0.47402106]
[1758077340285,0.00586936,117030.0,117020.0,0.81832424]
[1758077340513,0.00586936,117030.0,117020.0,0.47402106]
[1758077340736,0.00586936,117030.0,117020.0,0.81832424]
[1758077340965,0.00586936,117030.0,117020.0,0.8439916]
[1758077342289,0.00586936,117030.0,117020.0,0.49968842]
[1758077342753,0.00586936,117030.0,117020.0,0.8439916]
[1758077342964,0.00586936,117030.0,117020.0,0.8463516]
[1758077343178,0.00586936,117030.0,117020.0,0.8471516]
[1758077343618,0.00486936,117030.0,117020.0,0.8471516]
[1758077343858,0.00586936,117030.0,117020.0,0.8471516]
[1758077344064,0.00586936,117030.0,117020.0,0.29149194]
[1758077344268,0.00586936,117030.0,117020.0,0.91279512]
[1758077344472,0.00586936,117030.0,117020.0,0.91179512]
[1758077344888,0.00586936,117030.0,117020.0,0.91279512]
[1758077345161,0.00586936,117030.0,117020.0,0.56741194]
[1758077345372,0.00486936,117030.0,117020.0,0.91371512]
[1758077345784,0.00486936,117030.0,117020.0,0.91363512]
[1758077346812,0.00486936,117030.0,117020.0,0.56929194]
[1758077347042,0.00486936,117030.0,117020.0,0.91359512]
[1758077347584,0.00486936,117030.0,117020.0,0.56613194]
[1758077347794,0.17576571,117030.0,117020.0,0.28933194]
[1758077348074,0.35124254,117030.0,117020.0,0.47486106]
[1758077348286,0.00693936,117030.0,117020.0,0.47486106]
[1758077348515,0.35124254,117030.0,117020.0,0.47486106]
[1758077348717,0.35124254,117030.0,117020.0,0.47510106]
[1758077349144,0.00486936,117030.0,117020.0,0.47510106]
[1758077349349,0.34917254,117030.0,117020.0,0.47510106]
[1758077350474,0.34917254,117030.0,117020.0,0.19802106]
[1758077350677,0.34917254,117030.0,117020.0,0.47514106]
[1758077350898,0.00486936,117030.0,117020.0,0.47812106]
[1758077351021,0.34917254,117030.0,117020.0,0.47514106]
[1758077352070,0.34917254,117030.0,117020.0,0.20100106]
[1758077352280,0.34917254,117030.0,117020.0,0.47812106]
[1758077352492,0.34917254,117030.0,117020.0,0.19802106]
[1758077352745,0.34917254,117030.0,117020.0,0.47518106]
[1758077352917,0.34917254,117030.0,117020.0,0.17492106]
[1758077353120,0.35124254,117030.0,117020.0,0.47519106]
[1758077353812,0.17783571,117030.0,117020.0,0.47519106]
[1758077354031,0.34917254,117030.0,117020.0,0.47519106]
[1758077354232,0.35124254,117030.0,117020.0,0.47519106]
[1758077354426,0.34917254,117030.0,117020.0,0.47519106]
[1758077354935,0.00486936,117030.0,117020.0,0.47519106]
[1758077355255,0.34917254,117030.0,117020.0,0.47519106]
[1758077357311,0.52213889,117030.0,117020.0,0.47519106]
[1758077357543,0.17783571,117030.0,117020.0,0.47519106]
[1758077357738,0.52006889,117030.0,117020.0,0.47519106]
[1758077357974,0.52213889,117030.0,117020.0,0.47519106]
[1758077359458,0.18103571,117030.0,117020.0,0.00204011]
[1758077359672,0.54822889,117030.0,117020.0,0.27916011]
[1758077359900,0.89253207,117030.0,117020.0,0.00204011]
[1758077360125,0.55423051,117030.0,117020.0,0.27916011]
[1758077360590,0.64083196,117030.0,117020.0,0.27928011]
[1758077360992,0.29332878,117030.0,117020.0,0.28134011]
[1758077361208,0.63763196,117030.0,117020.0,0.47536106]
[1758077361439,0.61474196,117030.0,117020.0,0.47536106]
[1758077362074,0.64083196,117030.0,117020.0,0.47536106]
[1758077363537,0.64083196,117030.0,117020.0,0.30445011]
[1758077364166,0.64083196,117030.0,117020.0,0.02721011]
[1758077364400,0.64083196,117030.0,117020.0,0.30243011]
[1758077364623,0.64083196,117030.0,117020.0,0.02515011]
[1758077364840,0.98513514,117030.0,117020.0,0.00204011]
[1758077365037,0.64083196,117030.0,117020.0,0.27932011]
[1758077367833,0.64083196,117030.0,117020.0,0.00204011]
[1758077368036,0.64083196,117030.0,117020.0,0.27920011]
[1758077368324,0.29652878,117030.0,117020.0,0.27920011]
[1758077368551,0.64083196,117030.0,117020.0,0.27920011]
[1758077372453,0.29652878,117030.0,117020.0,0.27892011]
[1758077372688,0.64083196,117030.0,117020.0,0.27892011]
[1758077374453,0.98513514,117030.0,117020.0,0.27892011]
[1758077377157,0.98513514,117030.0,117020.0,0.00204011]
[1758077377408,0.98513514,117030.0,117020.0,0.27900011]
[1758077378472,0.29652878,117030.0,117020.0,0.27900011]
[1758077378684,0.98513514,117030.0,117020.0,0.27900011]
[1758077380986,1.11779967,117030.0,117020.0,0.002]
[1758077381644,1.11779967,117030.0,117000.0,0.27742]
[1758077381645,0.17092556,117010.0,117000.0,0.27742]
[1758077381833,0.6290975,117010.0,117000.0,0.27742]
[1758077382053,0.63771181,117010.0,117000.0,0.27742]
[1758077382225,0.63771181,117010.0,117000.0,0.0001]
[1758077382667,0.63781133,117010.0,117000.0,0.0001]
[1758077382815,0.63881133,117010.0,117000.0,0.0001]
[1758077386659,0.63880724,117010.0,117000.0,0.0001]
[1758077388061,0.72530869,117010.0,117000.0,0.0001]
[1758077388497,0.63880724,117010.0,117000.0,0.0001]
[1758077390543,0.63880493,117010.0,117000.0,0.0001]
[1758077390784,0.91648493,117010.0,117000.0,0.0001]
[1758077391458,0.9324693,117010.0,117000.0,0.0001]
[1758077394279,0.58816612,117010.0,117000.0,0.0001]
[1758077394433,0.9324693,117010.0,117000.0,0.0001]
[1758077395892,0.98773903,117010.0,117000.0,0.0001]
[1758077397618,0.58816612,117010.0,117000.0,0.0001]
[1758077397829,0.89441975,117010.0,117000.0,0.0001]
[1758077398370,0.87843538,117010.0,117000.0,0.0001]
[1758077398548,0.89441812,117010.0,117000.0,0.0001]
[1758077398756,0.58816449,117010.0,117000.0,0.0001]
[1758077400735,0.58816584,117010.0,117000.0,0.0001]
[1758077402362,0.97290611,117010.0,117000.0,0.0001]
[1758077403378,1.00305801,117010.0,117000.0,0.0001]
[1758077403577,0.17094017,117000.0,116990.0,0.000543]
[1758077403777,0.89192771,117000.0,116990.0,0.000543]
[1758077403975,0.92075771,117000.0,116990.0,0.000543]
[1758077404188,0.96513349,117000.0,116990.0,0.000543]
[1758077404989,1.00403716,117000.0,116990.0,0.000543]
[1758077405205,1.004039,117000.0,116990.0,0.000443]
[1758077405631,0.95966322,117000.0,116990.0,0.000443]
[1758077405843,0.95966322,117000.0,116990.0,0.001443]
[1758077406055,0.96308733,117000.0,116990.0,0.001443]
[1758077406270,0.96408733,117000.0,116990.0,0.001443]
[1758077406496,0.96408733,117000.0,116990.0,0.000443]
[1758077406700,0.96308718,117000.0,116990.0,0.000443]
[1758077406907,0.96408718,117000.0,116990.0,0.000443]
[1758077407328,1.00101899,117000.0,116990.0,0.000443]
[1758077409744,1.27777899,117000.0,116990.0,0.000443]
[1758077410600,1.27761899,117000.0,116990.0,0.000443]
[1758077411337,1.27745899,117000.0,116990.0,0.000443]
[1758077413408,1.00101899,117000.0,116990.0,0.000443]
[1758077413632,1.27729899,117000.0,116990.0,0.000443]
[1758077415865,1.00101899,117000.0,116990.0,0.000443]
[1758077416066,1.27709899,117000.0,116990.0,0.000443]
[1758077416283,1.00101899,117000.0,116990.0,0.000443]
[1758077416514,1.24016718,117000.0,116990.0,0.000443]
[1758077416723,1.58017583,117000.0,116990.0,0.000443]
[1758077418219,1.58001583,117000.0,116990.0,0.000443]
[1758077418840,1.58005583,117000.0,116990.0,0.000443]
[1758077419081,1.66655728,117000.0,116990.0,0.000443]
[1758077419282,1.39059728,117000.0,116990.0,0.000443]
[1758077419479,1.66651728,117000.0,116990.0,0.000443]
[1758077419900,1.39059728,117000.0,116990.0,0.000443]
[1758077420108,1.66667728,117000.0,116990.0,0.000443]
[1758077420557,1.66667059,117000.0,116990.0,0.000443]
[1758077420785,0.69158188,117000.0,116990.0,0.000443]
[1758077420997,1.58016914,117000.0,116990.0,0.000443]
[1758077421469,1.30408914,117000.0,116990.0,0.000443]
[1758077421714,1.58008914,117000.0,116990.0,0.000443]
[1758077421933,0.96758188,117000.0,116990.0,0.000443]
[1758077422148,1.58008914,117000.0,116990.0,0.000443]
[1758077422339,1.33289634,117000.0,116990.0,0.000443]
[1758077422557,1.60885634,117000.0,116990.0,0.000443]
[1758077423228,0.99634908,117000.0,116990.0,0.000443]
[1758077423436,0.99630908,117000.0,116990.0,0.000443]
[1758077423645,1.60881634,117000.0,116990.0,0.000443]
[1758077424624,0.72038908,117000.0,116990.0,0.000443]
[1758077424850,1.60873634,117000.0,116990.0,0.000443]
[1758077426064,1.33289634,117000.0,116990.0,0.000443]
[1758077426245,0.99606908,117000.0,116990.0,0.000443]
[1758077426466,0.69158188,117000.0,116990.0,0.000443]
[1758077426643,1.2700114,117000.0,116990.0,0.000443]
[1758077430290,1.26401497,117000.0,116990.0,0.000443]
[1758077430505,1.27001441,117000.0,116990.0,0.000443]
[1758077430800,1.26990441,117000.0,116990.0,0.000443]
[1758077432888,1.24602441,117000.0,116990.0,0.000443]
[1758077433020,1.26990441,117000.0,116990.0,0.000443]
[1758077433434,1.28191582,117000.0,116990.0,0.000443]
[1758077434502,1.26990441,117000.0,116990.0,0.000443]
[1758077435455,1.26990441,117000.0,116970.0,0.16446547]
[1758077435456,0.17095478,116990.0,116970.0,0.16446547]
[1758077435693,0.25747084,116980.0,116970.0,0.16446547]
[1758077435900,0.27945633,116980.0,116970.0,0.16645547]
[1758077436107,0.27955633,116980.0,116970.0,0.16645547]
[1758077436738,0.27955633,116980.0,116970.0,0.1665024]
[1758077437080,0.27955633,116980.0,116970.0,0.1520974]
[1758077437610,0.27955633,116980.0,116970.0,0.1763074]
[1758077438567,0.02308549,116980.0,116970.0,0.1763074]
[1758077438776,0.0011,116980.0,116970.0,0.48256103]
[1758077439163,0.0011,116980.0,116970.0,0.1619082]
[1758077439748,0.0001,116980.0,116970.0,0.1619082]
[1758077441335,0.0001,116980.0,116970.0,0.74292183]
[1758077441536,0.0001,116980.0,116970.0,0.75130187]
[1758077441750,0.0001,116980.0,116970.0,0.75330187]
[1758077442045,0.0001,116980.0,116970.0,0.8173246]
[1758077443135,0.0001,116990.0,116980.0,0.17096939]
[1758077443334,0.0001,116990.0,116980.0,0.20039939]
[1758077443748,0.0001,116990.0,116980.0,0.47499939]
[1758077444483,0.0001,116990.0,116980.0,0.20039939]
[1758077444664,0.0001,116990.0,116980.0,0.47499939]
[1758077444874,0.0001,116990.0,116980.0,0.47491939]
[1758077445008,0.0001,116990.0,116980.0,0.47601939]
[1758077445236,0.17105478,116990.0,116980.0,0.20149939]
[1758077445441,0.47730841,116990.0,116980.0,0.03053]
[1758077445644,0.17105478,116990.0,116980.0,0.0273]
[1758077445885,0.47730841,116990.0,116980.0,0.0273]
[1758077446472,0.47730841,116990.0,116980.0,0.03053]
[1758077446677,0.47730841,116990.0,116980.0,0.0273]
[1758077446940,0.47730841,116990.0,116980.0,0.03053]
[1758077448201,0.0001,116990.0,116980.0,0.03053]
[1758077448409,0.0001,116990.0,116980.0,0.50775302]
[1758077449432,0.0001,116990.0,116980.0,0.5033791]
[1758077450018,0.0001,117000.0,116980.0,0.58988055]
[1758077450219,0.0001,117000.0,116990.0,0.45037478]
[1758077450767,0.0001,117000.0,116990.0,0.45236478]
[1758077451397,0.0001,117000.0,116990.0,0.47650478]
[1758077452233,0.0001,117000.0,116990.0,0.47660478]
[1758077452433,0.0001,117000.0,116990.0,0.47860478]
[1758077452612,0.0001,117000.0,116990.0,0.47904478]
[1758077453274,0.0011,117000.0,116990.0,0.47904478]
[1758077453682,0.0001,117000.0,116990.0,0.47904478]
[1758077459094,0.51550897,117000.0,116990.0,0.02965]
[1758077459301,0.3445688,117000.0,116990.0,0.47884478]
[1758077460339,0.51550897,117000.0,116990.0,0.47884478]
[1758077460541,0.0001,117000.0,116990.0,0.47884478]
[1758077460788,0.3445688,117000.0,116990.0,0.47884478]
[1758077461552,0.0001,117000.0,116990.0,0.47884478]
[1758077461754,0.0001,117000.0,116990.0,0.75441358]
[1758077462366,0.0001,117000.0,116990.0,0.40994478]
[1758077462680,0.0001,117000.0,116990.0,0.75441358]
[1758077463205,0.0001,117000.0,116990.0,0.41004478]
[1758077463417,0.0001,117000.0,116990.0,0.75451358]
[1758077463628,0.0001,117000.0,116990.0,0.41004478]
[1758077463850,0.17102591,117010.0,117000.0,0.17094017]
[1758077463851,0.0001,117010.0,117000.0,0.17094017]
[1758077464058,0.0001,117010.0,117000.0,0.15369576]
[1758077464274,0.0001,117010.0,117000.0,0.58024456]
[1758077464491,0.0001,117010.0,117000.0,0.23577576]
[1758077465345,0.3445688,117010.0,117000.0,0.23587576]
[1758077465904,0.3445688,117010.0,117000.0,0.3012996]
[1758077466349,0.0001,117010.0,117000.0,0.3012996]
[1758077466565,0.3445688,117010.0,117000.0,0.3012996]
[1758077467418,0.35056214,117010.0,117000.0,0.3012996]
[1758077467847,0.35056214,117010.0,117000.0,0.5814196]
[1758077468276,0.00609334,117010.0,117000.0,0.5814196]
[1758077468729,0.35056214,117010.0,117000.0,0.5814196]
[1758077469175,0.00609334,117010.0,117000.0,0.5814196]
[1758077469645,0.35056214,117010.0,117000.0,0.51591576]
[1758077470323,0.00609334,117010.0,117000.0,0.23587576]
[1758077470544,0.35056214,117010.0,117000.0,0.51599576]
[1758077471697,0.00609334,117010.0,117000.0,0.51599576]
[1758077471904,0.35056214,117010.0,117000.0,0.51599576]
[1758077475568,0.35056214,117010.0,117000.0,0.58109889]
[1758077476413,0.00609334,117010.0,117000.0,0.58109889]
[1758077476630,0.35056214,117010.0,117000.0,0.58109889]
[1758077477090,0.3445688,117010.0,117000.0,0.58109889]
[1758077477310,0.35056874,117010.0,117000.0,0.58109889]
[1758077477806,0.35056874,117010.0,117000.0,0.5897827]
[1758077480089,0.35056874,117010.0,117000.0,0.58109889]
[1758077480307,0.00609994,117010.0,117000.0,0.58109889]
[1758077480521,0.35056874,117010.0,117000.0,0.58109889]
[1758077480738,0.00609994,117010.0,117000.0,0.58982982]
[1758077480959,0.00609994,117010.0,117000.0,0.93429862]
[1758077481182,0.00609994,117010.0,117000.0,0.58982982]
[1758077481843,0.00609994,117010.0,117000.0,0.93429862]
[1758077482283,0.00609994,117010.0,117000.0,0.30970982]
[1758077482489,0.00609994,117010.0,117000.0,0.93365862]
[1758077483341,0.00599994,117010.0,117000.0,1.27365862]
[1758077483543,0.37352783,117030.0,117020.0,0.17091095]
[1758077483759,0.55042878,117030.0,117020.0,0.17091095]
[1758077484021,0.37953243,117030.0,117020.0,0.45055095]
[1758077484251,0.55042878,117030.0,117020.0,0.45055095]
[1758077484471,0.3549734,117030.0,117020.0,0.17091095]
[1758077484691,0.35744276,117030.0,117020.0,0.45055095]
[1758077485135,0.01297396,117030.0,117020.0,0.79501975]
[1758077485448,0.01397396,117030.0,117020.0,0.79501975]
[1758077485903,0.01397396,117030.0,117020.0,0.79525975]
[1758077486154,0.01297396,117030.0,117020.0,0.79525975]
[1758077486359,0.01297396,117030.0,117020.0,0.82202733]
[1758077486591,0.01297396,117030.0,117020.0,0.54214733]
[1758077486780,0.01297396,117030.0,117020.0,0.82206733]
[1758077487298,0.01097396,117030.0,117020.0,0.82206733]
[1758077488100,0.01097396,117030.0,117020.0,0.54214733]
[1758077488388,0.01097396,117030.0,117020.0,0.82198733]
[1758077490043,0.01097396,117030.0,117020.0,0.82186733]
[1758077490267,0.01097396,117030.0,117020.0,0.47731853]
[1758077490473,0.01097396,117030.0,117020.0,0.82178733]
[1758077490690,0.01097396,117030.0,117020.0,0.47739853]
[1758077491742,0.01097396,117030.0,117020.0,0.47747853]
[1758077491948,0.35544276,117030.0,117020.0,0.19767853]
[1758077492153,0.35544276,117030.0,117020.0,0.47747853]
[1758077492560,0.01097396,117030.0,117020.0,0.47747853]
[1758077492756,0.35544276,117030.0,117020.0,0.47747853]
[1758077492960,0.01097396,117030.0,117020.0,0.47755853]
[1758077493370,0.35544276,117030.0,117020.0,0.47755853]
[1758077495262,0.35544276,117030.0,117020.0,0.19767853]
[1758077495535,0.34943816,117030.0,117020.0,0.47739853]
[1758077496145,0.35543385,117030.0,117020.0,0.47739853]
[1758077496291,0.5263302,117030.0,117020.0,0.19767853]
[1758077496491,0.52033451,117030.0,117020.0,0.47735853]
[1758077497281,0.52033451,117030.0,117020.0,0.19767853]
[1758077497498,0.18104571,117030.0,117020.0,0.30624758]
[1758077497724,0.54873451,117030.0,117020.0,0.30624758]
[1758077497966,0.52551451,117030.0,117020.0,0.30624758]
[1758077498208,0.52240451,117030.0,117020.0,0.02676758]
[1758077498443,0.54873451,117030.0,117020.0,0.30628758]
[1758077498890,0.89320331,117030.0,117020.0,0.30636758]
[1758077499113,0.21026161,117030.0,117020.0,0.30636758]
[1758077499344,0.54873451,117030.0,117020.0,0.30636758]
[1758077501271,0.54873451,117030.0,117020.0,0.47727853]
[1758077501497,0.20426571,117030.0,117020.0,0.47727853]
[1758077501721,0.54873451,117030.0,117020.0,0.47727853]
[1758077503618,0.20426571,117030.0,117020.0,0.47727853]
[1758077503828,0.54873451,117030.0,117020.0,0.47727853]
[1758077504720,0.52240451,117030.0,117020.0,0.47727853]
[1758077504936,0.00496936,117030.0,117020.0,0.47727853]
[1758077505140,0.34943816,117030.0,117020.0,0.47727853]
[1758077505550,0.00496936,117030.0,117020.0,0.47727853]
[1758077506376,0.52033451,117030.0,117020.0,0.47727853]
[1758077509126,0.34943816,117030.0,117020.0,0.47727853]
[1758077510200,0.00496936,117030.0,117020.0,0.82174733]
[1758077510628,0.00496936,117030.0,117020.0,0.47727853]
[1758077510896,0.00496936,117030.0,117020.0,0.82174733]
[1758077511321,0.00486936,117030.0,117020.0,0.82174733]
[1758077512407,0.00486936,117030.0,117020.0,1.16174733]
[1758077513080,0.00486936,117030.0,117020.0,0.81699853]
[1758077513295,0.00486936,117030.0,117020.0,1.16146733]
[1758077514585,0.00486936,117030.0,117020.0,1.56146733]
[1758077515219,0.00486936,117030.0,117020.0,1.28214733]
[1758077515430,0.00486936,117030.0,117020.0,1.56130733]
[1758077515640,0.00486936,117030.0,117020.0,1.28214733]
[1758077515838,0.00486936,117030.0,117020.0,1.56130733]
[1758077515987,0.00486936,117030.0,117020.0,1.21683853]
[1758077516193,0.00486936,117030.0,117020.0,1.56130733]
[1758077517853,0.00486936,117030.0,117020.0,1.52281806]
[1758077518063,0.00486936,117030.0,117020.0,1.24365806]
[1758077518247,0.00486936,117030.0,117020.0,1.52269806]
[1758077519072,0.00486936,117030.0,117020.0,1.21671853]
[1758077519509,0.00486936,117030.0,117020.0,1.52269806]
[1758077522088,0.00486936,117030.0,117020.0,1.52253806]
[1758077522298,0.00486936,117030.0,117020.0,1.24365806]
[1758077522506,0.00486936,117030.0,117020.0,0.93767853]
[1758077522943,0.00486936,117030.0,117020.0,1.21635853]
[1758077523625,0.00486936,117030.0,117020.0,0.93767853]
[1758077523842,0.00486936,117030.0,117020.0,0.81667853]
[1758077524468,0.00486936,117030.0,117020.0,0.53767853]
[1758077524669,0.00486936,117030.0,117020.0,0.81675853]
[1758077526223,0.00486936,117030.0,117020.0,0.89879853]
[1758077526429,0.00486936,117030.0,117020.0,0.61971853]
[1758077526627,0.00486936,117030.0,117020.0,0.89867853]
[1758077526834,0.00486936,117030.0,117020.0,1.20465806]
[1758077528707,0.00486936,117030.0,117020.0,1.29115951]
[1758077529247,0.00486936,117030.0,117020.0,0.98517998]
[1758077529450,0.00486936,117030.0,117020.0,1.29115951]
[1758077529687,0.00486936,117030.0,117020.0,1.29099951]
[1758077530111,0.00486936,117030.0,117020.0,0.98501998]
[1758077530551,0.00486936,117030.0,117020.0,1.69099951]
[1758077531321,0.00486936,117030.0,117020.0,1.38501998]
[1758077531546,0.00486936,117030.0,117020.0,1.69099951]
[1758077533381,0.00486936,117030.0,117020.0,1.41219951]
[1758077533551,0.00486936,117030.0,117020.0,1.69075951]
[1758077533992,0.00486936,117030.0,117020.0,1.69059951]
[1758077535259,0.00486936,117030.0,117020.0,1.41219951]
[1758077535469,0.00486936,117030.0,117020.0,1.69051951]
[1758077541462,0.00486936,117030.0,117020.0,1.38453998]
[1758077541675,0.00486936,117030.0,117020.0,1.41219951]
[1758077541881,0.00486936,117030.0,117020.0,1.69031951]
[1758077545315,0.00486936,117030.0,117020.0,2.01859951]
[1758077545526,0.00486936,117030.0,117020.0,1.71261998]
[1758077545735,0.00486936,117030.0,117020.0,2.01859951]
[1758077546152,0.00486936,117030.0,117020.0,1.71261998]
[1758077546371,0.00486936,117030.0,117020.0,2.01859951]
[1758077547936,0.00486936,117030.0,117020.0,2.01855951]
[1758077550937,0.00486936,117030.0,117020.0,1.74047951]
[1758077551186,0.00486936,117030.0,117020.0,2.01835951]
[1758077552555,0.00486936,117030.0,117020.0,1.71237998]
[1758077552818,0.00486936,117030.0,117020.0,2.01835951]
[1758077555646,0.00486936,117030.0,117020.0,2.04851141]
[1758077556295,0.0004,117050.0,117040.0,0.51088174]
[1758077556523,0.00044692,117050.0,117040.0,1.51673415]
[1758077556970,0.00044692,117050.0,117040.0,1.94251113]
[1758077557191,1e-08,117050.0,117040.0,1.80518113]
[1758077557414,1e-08,117050.0,117040.0,1.99247113]
[1758077557632,1e-08,117050.0,117040.0,1.99347113]
[1758077557857,1e-08,117060.0,117050.0,0.51086715]
[1758077558096,1e-08,117060.0,117050.0,1.26302813]
[1758077558320,1e-08,117060.0,117050.0,0.8495905]
[1758077558547,0.0004,117070.0,117060.0,0.51085255]
[1758077558767,0.0004,117070.0,117060.0,1.23157353]
[1758077558768,0.00044689,117070.0,117060.0,1.23157353]
[1758077559213,0.0004,117090.0,117080.0,0.59065092]
[1758077559453,0.0004,117090.0,117080.0,1.71380188]
[1758077559684,0.00017,117100.0,117090.0,0.6408285]
[1758077559912,0.00694602,117140.0,117130.0,0.54090234]
[1758077560135,0.72298103,117150.0,117140.0,0.17073587]
[1758077560375,0.72344996,117150.0,117140.0,0.36454145]
[1758077560600,0.89417125,117150.0,117140.0,0.11213819]
[1758077560846,0.89433342,117150.0,117140.0,0.02563674]
[1758077561069,0.72344996,117150.0,117140.0,0.70155772]
[1758077561296,0.6842254,117150.0,117140.0,1.78577197]
[1758077561528,0.62822791,117150.0,117140.0,0.90233197]
[1758077561770,1.10492873,117150.0,117140.0,0.17636271]
[1758077562017,1.10492873,117150.0,117140.0,0.46020271]
[1758077562018,0.62822791,117150.0,117140.0,0.46020271]
[1758077562244,0.80489844,117150.0,117140.0,0.46020271]
[1758077562461,1.11630014,117150.0,117140.0,0.02563674]
[1758077562689,1.13917014,117150.0,117140.0,0.02563674]
[1758077563167,1.15503114,117150.0,117140.0,0.02563674]
[1758077563406,1.15503114,117150.0,117140.0,1e-08]
[1758077563407,1.49503114,117150.0,117140.0,1e-08]
[1758077563655,0.17933389,117100.0,117070.0,0.32816]
[1758077563891,0.17082336,117080.0,117070.0,0.32816]
[1758077564122,0.17083796,117070.0,117060.0,0.52834261]
[1758077564357,0.48276673,117070.0,117060.0,0.52834261]
[1758077564594,0.00594924,117070.0,117060.0,0.76470726]
[1758077564827,0.17080997,117090.0,117060.0,0.60253804]
[1758077565052,0.48531426,117100.0,117080.0,0.34]
[1758077565302,0.47677456,117100.0,117090.0,0.29044]
[1758077565764,0.59447669,117100.0,117090.0,0.29044]
[1758077565991,0.17081966,117090.0,117080.0,0.29032]
[1758077566210,0.58374856,117090.0,117080.0,0.29032]
[1758077566657,0.00016217,117100.0,117080.0,0.54764123]
[1758077566876,0.42164094,117110.0,117090.0,0.17080859]
[1758077569172,0.58696856,117090.0,117080.0,0.29016]
[1758077569390,0.58374856,117090.0,117080.0,0.29016]
[1758077569626,0.58389695,117100.0,117080.0,0.46098336]
[1758077569860,0.171004,117100.0,117080.0,0.46098336]
[1758077570079,0.17080877,117090.0,117080.0,0.29016]
[1758077570303,0.58384856,117090.0,117080.0,0.29016]
[1758077570528,0.17080877,117090.0,117080.0,0.29016]
[1758077571467,0.17080877,117090.0,117080.0,0.46098336]
[1758077571690,0.58716379,117100.0,117080.0,0.46098336]
[1758077571908,0.171004,117100.0,117080.0,0.46098336]
[1758077572146,0.58394379,117100.0,117080.0,0.46098336]
[1758077572360,0.58404379,117100.0,117080.0,0.46098336]
[1758077572606,0.171104,117100.0,117080.0,0.46098336]
[1758077573329,0.171104,117100.0,117080.0,0.46308336]
[1758077573544,0.17080877,117090.0,117080.0,0.29226]
[1758077573748,0.58404379,117100.0,117080.0,0.46108336]
[1758077573969,0.58404379,117100.0,117080.0,0.46308336]
[1758077574178,0.58404379,117100.0,117080.0,0.46408336]
[1758077574380,0.171104,117100.0,117080.0,0.55058481]
[1758077574640,0.58404379,117100.0,117080.0,0.54858481]
[1758077575434,0.58404379,117100.0,117090.0,0.17080877]
[1758077575435,0.171104,117100.0,117090.0,0.17080877]
[1758077575650,0.171104,117100.0,117080.0,0.54858481]
[1758077575889,0.58404379,117100.0,117080.0,0.37776145]
[1758077576102,0.171104,117100.0,117080.0,0.37776145]
[1758077576327,0.17080877,117090.0,117080.0,0.37876145]
[1758077576546,0.17080877,117090.0,117080.0,0.37676145]
[1758077576757,0.17676371,117090.0,117080.0,0.37676145]
[1758077577211,0.17676371,117090.0,117080.0,0.29586]
[1758077577212,0.5947135,117090.0,117080.0,0.29586]
[1758077577448,0.59487567,117090.0,117080.0,0.0001]
[1758077577666,0.61982567,117090.0,117080.0,0.0021]
[1758077577877,0.61982567,117090.0,117080.0,0.0031]
[1758077577878,0.50552718,117090.0,117080.0,0.0031]
[1758077578095,0.47556718,117090.0,117080.0,0.0031]
[1758077578319,0.17692588,117090.0,117080.0,0.0021]
[1758077578777,0.47556718,117090.0,117080.0,0.0021]
[1758077579023,0.47556718,117090.0,117080.0,0.17292336]
[1758077579211,0.47556718,117090.0,117080.0,0.0021]
[1758077579415,0.47752718,117090.0,117080.0,0.0021]
[1758077579632,0.50334718,117090.0,117080.0,0.0021]
[1758077580093,0.50334718,117090.0,117080.0,0.0041]
[1758077580323,0.20470588,117090.0,117080.0,0.0041]
[1758077580576,0.81443918,117090.0,117080.0,0.0041]
[1758077580797,0.17098553,117080.0,117070.0,0.0001]
[1758077581027,0.17100013,117070.0,117060.0,0.0001]
[1758077581263,0.17101472,117060.0,117050.0,0.0001]
[1758077581488,0.93936097,117060.0,117050.0,0.0001]
[1758077581708,0.76831192,117050.0,117040.0,0.0001]
[1758077581931,1.1715066,117050.0,117040.0,0.0001]
[1758077582153,0.17088174,117040.0,117030.0,0.06930116]
[1758077582386,0.83527648,117040.0,117030.0,0.06930116]
[1758077582608,0.02195323,117040.0,117030.0,0.24114822]
[1758077582833,0.00606123,117040.0,117030.0,0.53582822]
[1758077583042,0.00606123,117040.0,117030.0,0.46662706]
[1758077583257,0.00606123,117040.0,117030.0,0.89312851]
[1758077583710,0.00606123,117040.0,117030.0,0.89300851]
[1758077583926,0.00596123,117040.0,117030.0,0.89300851]
[1758077584376,0.00596123,117040.0,117030.0,1.25663365]
[1758077584574,0.00026217,117060.0,117050.0,0.17086715]
[1758077584800,0.0062212,117060.0,117050.0,0.46526715]
[1758077585144,0.3068225,117060.0,117050.0,0.17136715]
[1758077585342,0.3326425,117060.0,117050.0,0.17086715]
[1758077585739,0.3297125,117060.0,117050.0,0.17086715]
[1758077585881,0.3068225,117060.0,117050.0,0.17186715]
[1758077586300,0.3068225,117060.0,117050.0,0.17236715]
[1758077586700,0.3088225,117060.0,117050.0,0.17236715]
[1758077586956,0.0081812,117060.0,117050.0,0.17236715]
[1758077587169,0.3068225,117060.0,117050.0,0.17236715]
[1758077587371,0.0062212,117060.0,117050.0,0.17236715]
[1758077587608,0.0062212,117060.0,117050.0,0.17246715]
[1758077588211,0.3048625,117060.0,117050.0,0.17246715]
[1758077588606,0.0062212,117060.0,117050.0,0.17246715]
[1758077589371,0.0062198,117060.0,117050.0,0.17246715]
[1758077589590,0.0062198,117060.0,117050.0,0.17277715]
[1758077589791,0.00595763,117060.0,117050.0,0.2592786]
[1758077590209,0.00595763,117060.0,117050.0,0.6592786]
[1758077590633,0.00595763,117060.0,117050.0,0.57813632]
[1758077590842,0.00595763,117060.0,117050.0,1.21677762]
[1758077591039,0.00595763,117060.0,117050.0,1.21577762]
[1758077591243,0.00595763,117060.0,117050.0,1.61877762]
[1758077591668,0.0001,117080.0,117050.0,1.61877762]
[1758077591910,0.0001,117080.0,117070.0,0.17083796]
[1758077591911,0.00596818,117080.0,117070.0,0.17083796]